bitfinex/quotes_BTCUSD_20240826
["timestamp","ask_amount","ask_price","bid_price","bid_amount"]
[1724638269859,0.632427,64044.0,64043.0,0.002825]
[1724638270592,0.164,64044.0,64043.0,0.002825]
[1724638270821,0.164,64044.0,64043.0,0.47126]
[1724638270822,0.021,64044.0,64043.0,0.47126]
[1724638271023,0.021,64044.0,64043.0,0.87407632]
[1724638271841,0.011,64044.0,64043.0,0.87307632]
[1724638272017,0.011,64044.0,64043.0,1.18536632]
[1724638272219,0.011,64044.0,64043.0,1.34154433]
[1724638272846,0.000283,64049.0,64048.0,0.780662]
[1724638273054,0.000283,64049.0,64048.0,0.78887384]
[1724638274450,0.001283,64049.0,64048.0,0.79587384]
[1724638275230,0.002283,64049.0,64048.0,0.80187384]
[1724638279728,0.002283,64049.0,64048.0,0.95805185]
[1724638279959,0.002283,64049.0,64048.0,1.41081685]
[1724638280529,0.002283,64049.0,64048.0,1.09855185]
[1724638280733,0.158413,64049.0,64048.0,0.02121184]
[1724638281142,0.158413,64049.0,64048.0,0.013]
[1724638281313,0.158413,64049.0,64048.0,0.02119326]
[1724638281933,0.080583,64049.0,64048.0,0.02119326]
[1724638286110,0.080583,64049.0,64048.0,0.013]
[1724638286324,0.080583,64049.0,64048.0,0.02119407]
[1724638286934,0.080583,64049.0,64048.0,0.17732607]
[1724638287132,0.002283,64049.0,64048.0,0.48959107]
[1724638287349,0.002283,64049.0,64048.0,0.17732607]
[1724638288142,0.002283,64049.0,64048.0,0.48959107]
[1724638288362,0.002283,64049.0,64048.0,0.88277852]
[1724638290089,0.002283,64049.0,64048.0,1.34809908]
[1724638296061,0.002283,64049.0,64048.0,0.95803408]
[1724638296289,0.002283,64049.0,64048.0,0.48959107]
[1724638302256,0.158413,64049.0,64048.0,0.02119407]
[1724638302459,0.002283,64049.0,64048.0,0.02119407]
[1724638302695,0.002283,64049.0,64048.0,0.169132]
[1724638302900,0.002283,64049.0,64048.0,0.17732393]
[1724638303179,0.002283,64049.0,64048.0,0.02119193]
[1724638307335,0.002283,64049.0,64048.0,0.17732393]
[1724638312811,0.002283,64049.0,64048.0,0.48958893]
[1724638313631,0.002283,64049.0,64048.0,1.40999694]
[1724638313834,0.002283,64049.0,64048.0,2.06843906]
[1724638314057,0.002283,64049.0,64048.0,2.50370406]
[1724638314264,0.002283,64049.0,64048.0,2.60137849]
[1724638314687,0.002283,64049.0,64048.0,2.28911349]
[1724638314891,0.001283,64049.0,64048.0,2.28211349]
[1724638315298,0.002283,64049.0,64048.0,2.30295858]
[1724638315530,0.002283,64049.0,64048.0,2.20528415]
[1724638315731,0.001283,64049.0,64048.0,2.19928415]
[1724638316141,0.002283,64049.0,64048.0,2.20628415]
[1724638316516,0.001283,64049.0,64048.0,2.19928415]
[1724638316942,0.002283,64049.0,64048.0,2.21228415]
[1724638317056,0.002283,64049.0,64048.0,1.87701915]
[1724638317258,0.002283,64049.0,64048.0,1.85001915]
[1724638317259,0.000283,64049.0,64048.0,1.85001915]
[1724638317466,9.507e-05,64049.0,64048.0,1.41305415]
[1724638317700,0.00109507,64049.0,64048.0,1.41305415]
[1724638317917,0.00109507,64049.0,64048.0,1.40520906]
[1724638318118,0.00109507,64049.0,64048.0,1.41920906]
[1724638318349,0.00109507,64049.0,64048.0,0.93676605]
[1724638318553,0.06379507,64049.0,64048.0,0.27832393]
[1724638318949,0.06379507,64049.0,64048.0,0.32510076]
[1724638318950,0.06279507,64049.0,64048.0,0.32510076]
[1724638319123,0.06279507,64049.0,64048.0,0.33810076]
[1724638319281,0.06379507,64049.0,64048.0,0.33810076]
[1724638319481,0.06379507,64049.0,64048.0,0.60358893]
[1724638319682,0.06279507,64049.0,64048.0,0.63736576]
[1724638319888,0.06379507,64049.0,64048.0,0.59758893]
[1724638320316,0.06379507,64049.0,64048.0,0.58358893]
[1724638320788,0.06479507,64049.0,64048.0,0.59158893]
[1724638320988,0.06379507,64049.0,64048.0,0.58458893]
[1724638321240,0.06479507,64049.0,64048.0,0.59158893]
[1724638322054,0.06479507,64049.0,64048.0,0.63836576]
[1724638322292,0.06479507,64049.0,64048.0,0.63836548]
[1724638322501,0.00209507,64049.0,64048.0,0.95062893]
[1724638322628,0.00209507,64049.0,64048.0,1.32021467]
[1724638323446,0.00209507,64049.0,64048.0,0.97401514]
[1724638323648,0.00209507,64049.0,64048.0,0.63836493]
[1724638323999,0.00209507,64049.0,64048.0,0.59158893]
[1724638324821,0.00209507,64049.0,64048.0,0.63836486]
[1724638325026,0.00209507,64049.0,64048.0,0.95062986]
[1724638326229,0.00209507,64049.0,64048.0,1.86150414]
[1724638326812,0.00209507,64049.0,64048.0,2.00265881]
[1724638327019,0.00109507,64049.0,64048.0,1.85532914]
[1724638327397,0.00209507,64049.0,64048.0,1.86932914]
[1724638328024,0.00109507,64049.0,64048.0,1.86132914]
[1724638328222,0.00109507,64049.0,64048.0,1.87532914]
[1724638328423,0.00209507,64049.0,64048.0,1.87532914]
[1724638328748,0.00209507,64049.0,64048.0,2.18759414]
[1724638328949,0.00209507,64049.0,64048.0,2.21059414]
[1724638330362,0.009086,64063.0,64062.0,1.092689]
[1724638330565,0.009086,64063.0,64062.0,1.65185095]
[1724638330736,0.009086,64063.0,64062.0,2.0213302]
[1724638330940,0.009086,64063.0,64062.0,2.03049218]
[1724638331141,0.009086,64063.0,64062.0,2.45091647]
[1724638331346,0.009086,64063.0,64062.0,2.45085857]
[1724638331522,0.009086,64063.0,64062.0,2.46385857]
[1724638331947,0.009086,64063.0,64062.0,2.45085857]
[1724638332285,0.009086,64063.0,64062.0,2.61896836]
[1724638332404,0.009086,64063.0,64062.0,2.61890951]
[1724638332608,0.009086,64063.0,64062.0,2.6267568]
[1724638332838,0.009086,64063.0,64062.0,2.6127568]
[1724638333036,0.009086,64063.0,64062.0,2.6267568]
[1724638333236,0.00090861,64066.0,64065.0,1.231337]
[1724638333436,0.00090861,64066.0,64065.0,1.8565673]
[1724638333642,0.00090861,64066.0,64065.0,2.17689314]
[1724638334460,0.00090861,64066.0,64065.0,2.19089314]
[1724638334825,0.00053185,64076.0,64074.0,1.093486]
[1724638335153,0.00053185,64076.0,64074.0,2.10488931]
[1724638335358,0.00053185,64076.0,64074.0,2.52084028]
[1724638335557,0.00053185,64076.0,64074.0,1.81636425]
[1724638335928,0.00053185,64076.0,64074.0,1.62775031]
[1724638336127,0.00053185,64076.0,64074.0,1.64175031]
[1724638336240,0.00053185,64076.0,64074.0,1.64075031]
[1724638336681,0.00053185,64076.0,64074.0,1.64175031]
[1724638336878,0.00053185,64076.0,64074.0,1.64878677]
[1724638337290,0.00053185,64076.0,64074.0,1.63478677]
[1724638337521,0.00053185,64076.0,64074.0,1.64878677]
[1724638337723,0.00053185,64076.0,64074.0,1.66278677]
[1724638338157,0.00053185,64076.0,64074.0,1.64878677]
[1724638338378,0.00053185,64076.0,64074.0,1.66278677]
[1724638343044,0.00053185,64076.0,64074.0,1.66378677]
[1724638343245,0.00053185,64076.0,64074.0,1.73928677]
[1724638343656,0.00053185,64076.0,64074.0,1.76228677]
[1724638344687,0.00053185,64076.0,64074.0,2.13632577]
[1724638345339,0.00053185,64076.0,64074.0,1.82418677]
[1724638345558,0.00053185,64076.0,64074.0,1.82318677]
[1724638345761,0.00053185,64076.0,64074.0,1.76128677]
[1724638345965,0.00053185,64076.0,64074.0,1.68578677]
[1724638346141,0.00053185,64076.0,64074.0,1.66378677]
[1724638348342,0.00053185,64076.0,64074.0,1.66278677]
[1724638348748,0.00053185,64076.0,64074.0,1.66378677]
[1724638350436,0.00053185,64076.0,64074.0,1.66278677]
[1724638352135,0.00053185,64076.0,64074.0,1.66378677]
[1724638352333,0.00053185,64076.0,64074.0,1.74118677]
[1724638352536,0.00053185,64076.0,64074.0,1.80418677]
[1724638353547,0.10090751,64084.0,64082.0,1.09335]
[1724638353763,0.10090751,64084.0,64082.0,1.78760479]
[1724638353968,0.10090751,64084.0,64082.0,1.70557478]
[1724638354168,0.10090751,64084.0,64082.0,1.62667478]
[1724638355366,0.10090751,64084.0,64082.0,1.63967478]
[1724638355578,0.10090751,64084.0,64082.0,1.62667478]
[1724638355786,0.10090751,64084.0,64082.0,1.64067478]
[1724638355985,0.10090751,64084.0,64082.0,1.64667478]
[1724638356212,0.10090751,64084.0,64082.0,1.65480755]
[1724638356362,0.10090751,64084.0,64082.0,1.64880755]
[1724638356565,0.10090751,64084.0,64082.0,1.66280755]
[1724638356771,0.10090751,64084.0,64082.0,1.66180755]
[1724638356931,0.18260751,64084.0,64082.0,1.66280755]
[1724638357132,0.18260751,64084.0,64082.0,1.64880755]
[1724638357575,0.18260751,64084.0,64082.0,1.66180755]
[1724638357830,0.10090751,64084.0,64082.0,1.66280755]
[1724638358035,0.10090751,64084.0,64082.0,1.64880755]
[1724638358474,0.10090751,64084.0,64082.0,1.66280755]
[1724638358882,0.10090751,64084.0,64082.0,1.64880755]
[1724638359084,0.10090751,64084.0,64082.0,1.66280755]
[1724638359882,0.10090751,64084.0,64082.0,1.66180755]
[1724638360233,0.06957501,64083.0,64082.0,1.66180755]
[1724638360665,0.06957501,64083.0,64082.0,1.66144484]
[1724638361379,0.06957501,64083.0,64082.0,1.07936806]
[1724638361380,0.15277501,64083.0,64082.0,1.07936806]
[1724638362658,0.30882201,64083.0,64082.0,0.03480728]
[1724638362864,0.15277501,64083.0,64082.0,0.03480728]
[1724638363690,0.15277501,64083.0,64082.0,0.00680728]
[1724638363691,0.30882201,64083.0,64082.0,0.00680728]
[1724638364148,0.62091701,64083.0,64082.0,0.003]
[1724638364358,0.62091701,64083.0,64082.0,0.005]
[1724638364952,0.62091701,64083.0,64082.0,0.003]
[1724638365475,0.62091701,64083.0,64082.0,0.004]
[1724638365676,0.62091701,64083.0,64082.0,0.01080218]
[1724638365926,0.15277501,64083.0,64082.0,0.001]
[1724638366135,0.15277501,64083.0,64082.0,0.16585218]
[1724638366332,0.15277501,64083.0,64082.0,0.15905]
[1724638366563,0.15277501,64083.0,64082.0,0.47795218]
[1724638366773,0.06957501,64083.0,64082.0,0.94623019]
[1724638366968,0.00907501,64083.0,64082.0,1.25833019]
[1724638367171,0.00907501,64083.0,64082.0,1.40393019]
[1724638367588,0.00907501,64083.0,64082.0,1.40193019]
[1724638367722,0.00907501,64083.0,64082.0,1.50293019]
[1724638367984,0.00907501,64083.0,64082.0,1.81503019]
[1724638368136,0.00907501,64083.0,64082.0,1.81903019]
[1724638368336,0.00907501,64083.0,64082.0,1.8230469]
[1724638369167,0.00907501,64083.0,64082.0,1.8310469]
[1724638369571,0.00907501,64083.0,64082.0,1.8410469]
[1724638369954,0.00907501,64083.0,64082.0,1.8310469]
[1724638370327,0.00907501,64083.0,64082.0,1.8450469]
[1724638370749,0.00907501,64083.0,64082.0,2.21403472]
[1724638370951,0.00907501,64083.0,64082.0,2.32067623]
[1724638371159,0.00907501,64083.0,64082.0,2.19003472]
[1724638371365,0.00907501,64083.0,64082.0,2.20403472]
[1724638371575,0.00907501,64083.0,64082.0,2.19003472]
[1724638371964,0.00907501,64083.0,64082.0,2.20403472]
[1724638372167,0.00907501,64083.0,64082.0,2.19003472]
[1724638372476,0.00907501,64083.0,64082.0,2.20403472]
[1724638372631,0.00907501,64083.0,64082.0,2.21803472]
[1724638372836,0.00907501,64083.0,64082.0,2.19000511]
[1724638373238,0.00907501,64083.0,64082.0,2.20400511]
[1724638374289,0.00907501,64083.0,64082.0,2.21800511]
[1724638374491,0.00907501,64083.0,64082.0,2.3671407]
[1724638374881,0.00907501,64083.0,64082.0,2.3531407]
[1724638375513,0.00907501,64083.0,64082.0,2.21309111]
[1724638375885,0.00907501,64083.0,64082.0,2.22709111]
[1724638376200,0.00907501,64083.0,64082.0,2.21309111]
[1724638376400,0.00907501,64083.0,64082.0,2.22709111]
[1724638376780,0.00907501,64083.0,64082.0,2.21309111]
[1724638376984,0.00907501,64083.0,64082.0,2.22709111]
[1724638377337,0.00907501,64083.0,64082.0,2.06849111]
[1724638377503,0.00907501,64083.0,64082.0,2.08249111]
[1724638378084,0.00907501,64083.0,64082.0,2.06849111]
[1724638378281,0.00907501,64083.0,64082.0,2.08249111]
[1724638379809,0.00907501,64083.0,64082.0,2.06849111]
[1724638380127,0.00907501,64083.0,64082.0,2.08249111]
[1724638380946,0.00907501,64083.0,64082.0,2.05449111]
[1724638381143,0.00907501,64083.0,64082.0,2.06849111]
[1724638381573,0.00907501,64083.0,64082.0,2.05449111]
[1724638381775,0.00907501,64083.0,64082.0,2.06849111]
[1724638381982,0.08767501,64083.0,64082.0,1.75639111]
[1724638382194,0.14847501,64083.0,64082.0,1.85022817]
[1724638382540,0.14847501,64083.0,64082.0,1.74739111]
[1724638382746,0.14847501,64083.0,64082.0,1.73830511]
[1724638383103,0.14847501,64083.0,64082.0,1.11310511]
[1724638383319,0.14847501,64083.0,64082.0,0.29098019]
[1724638383519,0.14847501,64083.0,64082.0,0.13480218]
[1724638383718,0.14847501,64083.0,64082.0,0.03480218]
[1724638384081,0.14847501,64083.0,64082.0,0.10680218]
[1724638384280,0.14847501,64083.0,64082.0,0.11280218]
[1724638384481,0.14847501,64083.0,64082.0,0.11880218]
[1724638384924,0.30452201,64083.0,64082.0,0.11880218]
[1724638385124,0.61661701,64083.0,64082.0,0.01880218]
[1724638385483,0.61661701,64083.0,64082.0,0.02480218]
[1724638385845,0.61661701,64083.0,64082.0,0.01280218]
[1724638385994,0.61661701,64083.0,64082.0,0.006]
[1724638386196,0.295854,64080.0,64079.0,0.000825]
[1724638386848,0.295854,64080.0,64079.0,0.00101358]
[1724638387050,0.607963,64080.0,64079.0,0.00101358]
[1724638387450,0.295854,64080.0,64079.0,0.00401358]
[1724638387851,0.295854,64080.0,64079.0,0.00701358]
[1724638388066,0.1398,64080.0,64079.0,0.00701358]
[1724638388263,0.295854,64080.0,64079.0,0.006825]
[1724638388507,0.295854,64080.0,64079.0,0.00701358]
[1724638388709,0.295854,64080.0,64079.0,0.006825]
[1724638390563,0.1398,64080.0,64079.0,0.006825]
[1724638393003,0.1398,64080.0,64079.0,0.47518458]
[1724638394880,0.1398,64080.0,64079.0,0.48199108]
[1724638395256,0.1398,64080.0,64079.0,0.49029935]
[1724638395454,0.1398,64080.0,64079.0,0.80241335]
[1724638395884,0.1398,64080.0,64079.0,0.95859136]
[1724638396314,0.13961217,64080.0,64079.0,1.27070536]
[1724638396522,0.13961217,64080.0,64079.0,1.27051678]
[1724638396719,0.00907501,64083.0,64082.0,1.09235]
[1724638396935,0.00907501,64083.0,64082.0,1.24852801]
[1724638397132,0.00907501,64083.0,64082.0,1.25534564]
[1724638397277,0.00907501,64083.0,64082.0,1.25553422]
[1724638397483,0.00907501,64083.0,64082.0,1.25534564]
[1724638397908,0.00907501,64083.0,64082.0,0.94343422]
[1724638398150,0.07527501,64083.0,64082.0,0.94343422]
[1724638398327,0.07527501,64083.0,64082.0,0.94324564]
[1724638398928,0.07527501,64083.0,64082.0,0.94343422]
[1724638399300,0.15097501,64083.0,64082.0,0.94324564]
[1724638399509,0.15097501,64083.0,64082.0,0.16286763]
[1724638399707,0.15097501,64083.0,64082.0,0.00700621]
[1724638399977,0.15097501,64083.0,64082.0,0.00681763]
[1724638400329,0.15097501,64083.0,64081.0,0.156051]
[1724638400531,0.00907501,64083.0,64082.0,0.00667142]
[1724638400920,0.00907501,64083.0,64082.0,0.00648284]
[1724638401269,0.09077501,64083.0,64082.0,0.00018858]
[1724638401503,0.07087501,64083.0,64082.0,0.00667142]
[1724638401707,0.07087501,64083.0,64082.0,0.00018858]
[1724638401904,0.0817,64082.0,64081.0,0.15624058]
[1724638402105,0.0817,64082.0,64081.0,0.00018858]
[1724638402851,0.23775,64082.0,64081.0,0.00018858]
[1724638403058,0.23895,64082.0,64081.0,0.00018858]
[1724638403479,0.1434,64081.0,64080.0,0.00018858]
[1724638404685,0.1434,64081.0,64080.0,0.00218858]
[1724638405072,0.1434,64081.0,64080.0,0.16024258]
[1724638405479,0.1434,64081.0,64080.0,0.00418858]
[1724638407120,0.1434,64081.0,64080.0,0.16024258]
[1724638407470,0.1434,64081.0,64080.0,0.47235158]
[1724638407613,0.1434,64081.0,64080.0,0.16024258]
[1724638409033,0.1434,64081.0,64080.0,0.160054]
[1724638409228,0.1434,64081.0,64080.0,0.16024258]
[1724638409391,0.1434,64081.0,64080.0,0.160054]
[1724638409963,0.1434,64081.0,64080.0,0.16640879]
[1724638410663,0.1434,64081.0,64080.0,0.47934279]
[1724638411589,0.1434,64081.0,64080.0,0.16723379]
[1724638414175,0.1434,64081.0,64080.0,0.16704521]
[1724638414376,0.1434,64081.0,64080.0,0.16723379]
[1724638418898,0.1434,64081.0,64080.0,0.01117979]
[1724638419103,0.611556,64081.0,64080.0,0.01117979]
[1724638419450,1.235764,64081.0,64080.0,0.01117979]
[1724638419828,1.235764,64081.0,64080.0,0.00501358]
[1724638422503,1.23667151,64081.0,64080.0,0.00501358]
[1724638423563,0.92456751,64081.0,64080.0,0.004825]
[1724638426329,0.61246351,64081.0,64080.0,0.00501358]
[1724638426757,0.14430751,64081.0,64080.0,0.00501358]
[1724638426953,0.14430751,64081.0,64080.0,0.004825]
[1724638427159,0.14430751,64081.0,64080.0,0.00501358]
[1724638427364,0.14430751,64081.0,64080.0,0.01135173]
[1724638427563,0.14430751,64081.0,64080.0,0.00501358]
[1724638427789,0.14430751,64081.0,64080.0,0.01154008]
[1724638427942,0.14430751,64081.0,64080.0,0.00501358]
[1724638428158,0.14430751,64081.0,64080.0,0.01153882]
[1724638428355,0.14430751,64081.0,64080.0,0.00501358]
[1724638428558,0.14430751,64081.0,64080.0,0.01153882]
[1724638428767,0.14430751,64081.0,64080.0,0.00501358]
[1724638429271,0.14430751,64081.0,64080.0,0.01153882]
[1724638432795,0.14430751,64081.0,64080.0,0.01135024]
[1724638433801,0.14430751,64081.0,64080.0,0.01153882]
[1724638434427,0.14430751,64081.0,64080.0,0.01135024]
[1724638435690,0.14430751,64081.0,64080.0,0.01153882]
[1724638436199,0.14430751,64081.0,64080.0,0.01135024]
[1724638436436,0.14430751,64081.0,64080.0,0.01153882]
[1724638436905,0.14430751,64081.0,64080.0,0.01135024]
[1724638437140,0.14430751,64081.0,64080.0,0.01153882]
[1724638437346,0.14430751,64081.0,64080.0,0.01135024]
[1724638437552,0.14430751,64081.0,64080.0,0.01153882]
[1724638438331,0.14430751,64081.0,64080.0,0.01135024]
[1724638439038,0.14430751,64081.0,64080.0,0.01153882]
[1724638439791,0.06140751,64081.0,64080.0,0.01135024]
[1724638439999,0.00090751,64081.0,64080.0,0.47970182]
[1724638440202,0.00090751,64081.0,64080.0,0.58734662]
[1724638441245,0.00090751,64081.0,64080.0,0.89945562]
[1724638442003,0.00090751,64081.0,64080.0,0.58734662]
[1724638443348,0.00090751,64081.0,64080.0,0.5875352]
[1724638444787,0.00090751,64081.0,64080.0,0.58734662]
[1724638445083,0.00090751,64081.0,64080.0,1.41453144]
[1724638445280,0.00090751,64081.0,64080.0,1.8598875]
[1724638445393,0.00090751,64081.0,64080.0,1.8608875]
[1724638445596,0.00090751,64081.0,64080.0,1.9608875]
[1724638446041,0.00090751,64081.0,64080.0,1.9588875]
[1724638446464,0.00090751,64081.0,64080.0,1.9668875]
[1724638447019,0.00090751,64081.0,64080.0,1.9588375]
[1724638447219,0.00090751,64081.0,64080.0,1.9708375]
[1724638447429,0.00090751,64081.0,64080.0,1.9788375]
[1724638447755,0.00090751,64081.0,64080.0,1.9708375]
[1724638447957,0.00090751,64081.0,64080.0,2.13251102]
[1724638448160,0.00090751,64081.0,64080.0,2.14651102]
[1724638448363,0.00090751,64081.0,64080.0,1.8761927]
[1724638448595,0.00090751,64081.0,64080.0,1.17605084]
[1724638448797,0.00090751,64081.0,64080.0,0.29159282]
[1724638448798,0.07920751,64081.0,64080.0,0.29159282]
[1724638449005,0.14560751,64081.0,64080.0,0.29159282]
[1724638449808,0.14560751,64081.0,64080.0,0.27759282]
[1724638450040,0.00090751,64081.0,64080.0,0.58951324]
[1724638450237,0.00090751,64081.0,64080.0,0.59451324]
[1724638450437,0.00090751,64081.0,64080.0,0.58051324]
[1724638450636,0.00090751,64081.0,64080.0,0.57551324]
[1724638450811,0.00090751,64081.0,64080.0,0.88762224]
[1724638451012,0.00090751,64081.0,64080.0,0.94438434]
[1724638451623,0.00090751,64081.0,64080.0,0.9443826]
[1724638451830,0.00090751,64081.0,64080.0,0.96776278]
[1724638452261,0.00090751,64081.0,64080.0,0.89762224]
[1724638452825,0.00090751,64081.0,64080.0,1.18984079]
[1724638452978,0.00090751,64081.0,64080.0,1.11970025]
[1724638453167,0.00090751,64081.0,64080.0,1.19828291]
[1724638453369,0.00090751,64081.0,64080.0,1.06224237]
[1724638453840,0.00090751,64081.0,64080.0,1.10899727]
[1724638454023,0.00090751,64081.0,64080.0,1.06224237]
[1724638454230,0.00090751,64081.0,64080.0,1.10899723]
[1724638454447,0.00090751,64081.0,64080.0,1.06224237]
[1724638454644,0.00090751,64081.0,64080.0,1.10899723]
[1724638455459,0.00090751,64081.0,64080.0,1.06224237]
[1724638455822,0.00090751,64081.0,64080.0,1.10899723]
[1724638457999,0.00090751,64081.0,64080.0,1.06224237]
[1724638458308,0.00090751,64081.0,64080.0,1.10898909]
[1724638459330,0.00090751,64081.0,64080.0,1.98988389]
[1724638459476,0.00090751,64081.0,64080.0,1.69060234]
[1724638459691,0.00090751,64081.0,64080.0,1.42109544]
[1724638459917,0.00090751,64081.0,64080.0,1.37435137]
[1724638460123,0.00090751,64081.0,64080.0,0.58570182]
[1724638460398,0.00090751,64081.0,64080.0,0.11753882]
[1724638460594,0.00090751,64081.0,64080.0,0.01753882]
[1724638461195,0.15695951,64081.0,64080.0,0.01735024]
[1724638461410,0.15695951,64081.0,64080.0,0.01753882]
[1724638461821,0.46906351,64081.0,64080.0,0.01753882]
[1724638462045,0.15695951,64081.0,64080.0,0.01101358]
[1724638462243,0.15695951,64081.0,64080.0,0.01683161]
[1724638463496,0.54676351,64081.0,64080.0,0.01683161]
[1724638463697,0.60796351,64081.0,64080.0,0.01101358]
[1724638463903,0.92006751,64081.0,64080.0,0.01101358]
[1724638464103,0.92006751,64081.0,64080.0,0.010825]
[1724638464782,0.92006751,64081.0,64080.0,0.005825]
[1724638464987,1.23217151,64081.0,64080.0,0.005825]
[1724638465127,1.23217151,64081.0,64080.0,0.00801358]
[1724638465950,1.23217151,64081.0,64080.0,0.00301358]
[1724638466178,0.92006751,64081.0,64080.0,0.00301358]
[1724638466402,0.92006751,64081.0,64080.0,0.00501358]
[1724638469667,0.29585951,64081.0,64080.0,0.00501358]
[1724638469867,0.13980751,64081.0,64080.0,0.00501358]
[1724638470095,0.13980751,64081.0,64080.0,0.01085487]
[1724638470294,0.13980751,64081.0,64080.0,0.01066629]
[1724638471702,0.06210751,64081.0,64080.0,0.01066629]
[1724638474042,0.21815951,64081.0,64080.0,0.01066629]
[1724638474255,0.29805951,64081.0,64080.0,0.01085487]
[1724638474846,0.29805951,64081.0,64080.0,0.01066629]
[1724638475045,0.29805951,64081.0,64080.0,0.01085487]
[1724638478585,0.29805951,64081.0,64080.0,0.01066629]
[1724638478896,0.29805951,64081.0,64080.0,0.01085487]
[1724638479071,0.14200751,64081.0,64080.0,0.01085487]
[1724638479251,0.00090751,64081.0,64080.0,0.01085487]
[1724638479450,0.00090751,64081.0,64080.0,0.55702929]
[1724638479683,0.00090751,64081.0,64080.0,0.55721787]
[1724638479885,0.00090751,64081.0,64080.0,0.47882929]
[1724638480036,0.00090751,64081.0,64080.0,0.47901787]
[1724638480446,0.00090751,64081.0,64080.0,0.47882929]
[1724638480692,0.00090751,64081.0,64080.0,0.47901787]
[1724638480892,0.00090751,64081.0,64080.0,0.01085487]
[1724638480893,0.06350751,64081.0,64080.0,0.01085487]
[1724638481101,0.14570751,64081.0,64080.0,0.01085487]
[1724638482232,0.30175951,64081.0,64080.0,0.01085487]
[1724638483424,0.61386351,64081.0,64080.0,0.01085487]
[1724638483642,0.61386351,64081.0,64080.0,0.00501358]
[1724638483846,0.61386351,64081.0,64080.0,0.01121597]
[1724638484088,0.30175951,64081.0,64080.0,0.01102739]
[1724638484300,0.30175951,64081.0,64080.0,0.01121597]
[1724638484549,0.30175951,64081.0,64080.0,0.01102739]
[1724638484745,0.30175951,64081.0,64080.0,0.00501358]
[1724638486006,0.00090751,64081.0,64080.0,0.00501358]
[1724638486350,0.00090751,64081.0,64080.0,0.47919039]
[1724638486526,0.00090751,64081.0,64080.0,0.160879]
[1724638486727,0.00090751,64081.0,64080.0,0.47919039]
[1724638486927,0.00090751,64081.0,64080.0,0.79129939]
[1724638488146,0.00090751,64081.0,64080.0,0.47937897]
[1724638488353,0.00090751,64081.0,64080.0,0.47919039]
[1724638488571,0.00090751,64081.0,64080.0,0.47937897]
[1724638488773,0.00090751,64081.0,64080.0,0.47919039]
[1724638491264,0.00090751,64081.0,64080.0,0.47937897]
[1724638491466,0.07620751,64081.0,64080.0,0.47919039]
[1724638491669,0.14080751,64081.0,64080.0,0.47937897]
[1724638491822,0.14080751,64081.0,64080.0,0.01102739]
[1724638492022,0.29685951,64081.0,64080.0,0.01121597]
[1724638492468,0.60896351,64081.0,64080.0,0.00501358]
[1724638492690,0.60896351,64081.0,64080.0,0.01135619]
[1724638492890,0.60896351,64081.0,64080.0,0.00501358]
[1724638494525,0.29685951,64081.0,64080.0,0.00501358]
[1724638494737,0.00090751,64081.0,64080.0,0.00501358]
[1724638494937,0.00090751,64081.0,64080.0,0.01135336]
[1724638495793,0.00090751,64081.0,64080.0,0.16740736]
[1724638496854,0.00090751,64081.0,64080.0,0.16721878]
[1724638497033,0.00090751,64081.0,64080.0,0.16740736]
[1724638497452,0.00090751,64081.0,64080.0,0.47932778]
[1724638497833,0.00090751,64081.0,64080.0,0.79143678]
[1724638497993,0.00090751,64081.0,64080.0,0.48092448]
[1724638498194,0.00090751,64081.0,64080.0,0.79303348]
[1724638499003,0.00090751,64081.0,64080.0,0.78726247]
[1724638500370,0.00090751,64081.0,64080.0,1.2131198]
[1724638500567,0.00090751,64081.0,64080.0,1.89810442]
[1724638500767,0.00090751,64081.0,64080.0,2.23360225]
[1724638501101,0.00090751,64081.0,64080.0,2.11665808]
[1724638501300,0.00090751,64081.0,64080.0,2.12434383]
[1724638501943,0.00090751,64081.0,64080.0,2.13234383]
[1724638502583,0.00090751,64081.0,64080.0,2.13134383]
[1724638502783,0.00090751,64081.0,64080.0,1.49888703]
[1724638502993,0.00090751,64081.0,64080.0,1.40534409]
[1724638503186,0.00090751,64081.0,64080.0,1.49470852]
[1724638503393,0.00090751,64081.0,64080.0,1.05531481]
[1724638503598,0.00090751,64081.0,64080.0,1.11389843]
[1724638503822,0.00090751,64081.0,64080.0,1.06712623]
[1724638504435,0.00090751,64081.0,64080.0,1.06795123]
[1724638504641,0.00090751,64081.0,64080.0,1.06395123]
[1724638504841,0.00090751,64081.0,64080.0,1.09872478]
[1724638505077,0.00090751,64081.0,64080.0,1.06395123]
[1724638505279,0.00090751,64081.0,64080.0,1.14610718]
[1724638505477,0.00090751,64081.0,64080.0,1.51553065]
[1724638505894,0.00090751,64081.0,64080.0,1.42198771]
[1724638506037,0.00090751,64081.0,64080.0,1.51553207]
[1724638506486,0.00090751,64081.0,64080.0,1.59813207]
[1724638506757,0.00090751,64081.0,64080.0,1.66473207]
[1724638507128,0.00090751,64081.0,64080.0,1.14610509]
[1724638507326,0.00090751,64081.0,64080.0,1.12271928]
[1724638507537,0.00090751,64081.0,64080.0,0.81061028]
[1724638507737,0.00090751,64081.0,64080.0,0.6078528]
[1724638508106,0.00090751,64081.0,64080.0,0.91977322]
[1724638508314,0.00090751,64081.0,64080.0,0.98992708]
[1724638508964,0.00090751,64081.0,64080.0,0.6078528]
[1724638509437,0.00090751,64081.0,64080.0,0.60286945]
[1724638510770,0.00090751,64081.0,64080.0,0.60305803]
[1724638510976,0.00090751,64081.0,64080.0,0.60286945]
[1724638511205,0.00090751,64081.0,64080.0,0.60305803]
[1724638512544,0.00090751,64081.0,64080.0,0.60286945]
[1724638512749,0.00090751,64081.0,64080.0,0.74776945]
[1724638514042,0.07890751,64081.0,64080.0,0.29094903]
[1724638514278,0.14070751,64081.0,64080.0,0.29094903]
[1724638514496,0.14070751,64081.0,64080.0,0.60286945]
[1724638514715,0.14070751,64081.0,64080.0,0.29076045]
[1724638514919,0.14070751,64081.0,64080.0,0.29094903]
[1724638515361,0.60886351,64081.0,64080.0,0.03489503]
[1724638515561,0.92096751,64081.0,64080.0,0.03489503]
[1724638515743,0.92096751,64081.0,64080.0,0.02501358]
[1724638516313,0.60886351,64081.0,64080.0,0.01301358]
[1724638516892,0.60886351,64081.0,64080.0,0.01149451]
[1724638517844,0.60886351,64081.0,64080.0,0.01249451]
[1724638518039,0.60886351,64081.0,64080.0,0.01449451]
[1724638518240,0.92096751,64081.0,64080.0,0.01449451]
[1724638518440,0.92096751,64081.0,64080.0,0.00401358]
[1724638518879,0.60886351,64081.0,64080.0,0.00401358]
[1724638519408,0.92096751,64081.0,64080.0,0.00401358]
[1724638519651,0.92096751,64081.0,64080.0,0.003825]
[1724638520271,0.92096751,64081.0,64080.0,0.00401358]
[1724638520474,0.92096751,64081.0,64080.0,0.003825]
[1724638520671,0.92096751,64081.0,64080.0,0.00401358]
[1724638522017,0.92096751,64081.0,64080.0,0.003825]
[1724638522221,0.92096751,64081.0,64080.0,0.00401358]
[1724638522935,0.60886351,64081.0,64080.0,0.00401358]